lending/lending_fUSD_20240731
["ID","MTS","AMOUNT","RATE_DAILY","PERIOD"]
[333711708,1722395433980,-271.676338,0.00010615,2]
[333711709,1722395433989,-11221.854821,0.00010615,2]
[333711710,1722395433999,-12089.359349,0.00010615,2]
[333711711,1722395434009,-409.958914,0.00010615,2]
[333711712,1722395434018,-501.26888829,0.00010625,2]
[333711713,1722395434027,-3000.0,0.0001063,2]
[333711714,1722395434036,-800.0,0.00010652,2]
[333711715,1722395434045,-501.26888829,0.00010653,2]
[333711716,1722395434054,-501.26888829,0.0001068,2]
[333711717,1722395434064,-501.26888829,0.00010708,2]
[333711718,1722395434073,-501.26888829,0.00010735,2]
[333711719,1722395434083,-2941.795665,0.00010748,2]
[333711720,1722395434092,-9811.425934,0.00010748,2]
[333711721,1722395434101,-543.570799,0.00010748,2]
[333711722,1722395434111,-23776.939251,0.00010748,2]
[333711723,1722395434120,-16190.947954,0.00010748,2]
[333711724,1722395434129,-820.245796,0.00010748,2]
[333711725,1722395434139,-271.676338,0.00010748,2]
[333711726,1722395434148,-9354.14731011,0.00010748,2]
[333711727,1722395434678,-360.246502,0.00010748,2]
[333711733,1722395438659,-1355.02815999,0.00010748,2]
[333711735,1722395438671,-152.4328489,0.00010748,2]
[333711737,1722395438681,-7924.2871487,0.00010748,2]
[333711738,1722395438693,-476.70580191,0.00010748,2]
[333711739,1722395439183,-301.52429435,0.00010748,2]
[333711871,1722395440690,-674.53,0.00010748,2]
[333711873,1722395440702,-2712.31210404,0.00010748,2]
[333711875,1722395440711,-409.958914,0.00010748,2]
[333711877,1722395440721,-151.0,0.00010748,2]
[333711879,1722395440731,-151.0,0.00010748,2]
[333711881,1722395440740,-151.0,0.00010748,2]
[333711883,1722395440749,-151.0,0.00010748,2]
[333711885,1722395440760,-218.37623,0.00010748,2]
[333711887,1722395440769,-238.675,0.00010748,2]
[333711889,1722395440779,-151.026486,0.00010748,2]
[333711890,1722395440788,-151.026486,0.00010748,2]
[333711892,1722395440798,-210.021836,0.00010748,2]
[333711894,1722395440809,-151.0,0.00010748,2]
[333711896,1722395440820,-151.0,0.00010748,2]
[333711898,1722395440829,-151.0,0.00010748,2]
[333711900,1722395440839,-151.0,0.00010748,2]
[333711902,1722395440847,-151.0,0.00010748,2]
[333711904,1722395440857,-151.0,0.00010748,2]
[333711906,1722395440866,-268.073743,0.00010748,2]
[333711907,1722395440876,-268.073743,0.00010748,2]
[333711909,1722395440885,-197.032884,0.00010748,2]
[333711911,1722395440895,-197.032884,0.00010748,2]
[333711913,1722395440904,-174.157114,0.00010748,2]
[333711915,1722395440913,-446.329501,0.00010748,2]
[333711917,1722395440923,-151.0,0.00010748,2]
[333711919,1722395440932,-446.329501,0.00010748,2]
[333711920,1722395440941,-151.0,0.00010748,2]
[333711922,1722395440950,-151.0,0.00010748,2]
[333711924,1722395440959,-151.0,0.00010748,2]
[333711926,1722395440968,-501.26888829,0.00010763,2]
[333711927,1722395440977,-419.88721366,0.00010768,2]
[333711929,1722395440986,-255.0,0.00010779,2]
[333711931,1722395440996,-244.92191331,0.0001078,2]
[333711933,1722395441005,-501.26888829,0.0001079,2]
[333711935,1722395441015,-200.0,0.00010794,2]
[333711937,1722395441024,-3178.93963072,0.000108,2]
[333711939,1722395441035,-2599.0946003,0.000108,2]
[333711941,1722395441046,-217.35639,0.000108,2]
[333711943,1722395441055,-217.35639,0.000108,2]
[333711945,1722395441063,-151.0,0.000108,2]
[333711947,1722395441072,-151.0,0.000108,2]
[333711949,1722395441082,-187.268867,0.000108,2]
[333711950,1722395441091,-295.47,0.000108,2]
[333711952,1722395441100,-295.47,0.000108,2]
[333711954,1722395441109,-151.0,0.000108,2]
[333711956,1722395441119,-151.0,0.000108,2]
[333711958,1722395441128,-151.0,0.000108,2]
[333711960,1722395441137,-151.0,0.000108,2]
[333711962,1722395441147,-151.0,0.000108,2]
[333711964,1722395441156,-151.0,0.000108,2]
[333711966,1722395441165,-244.9219133,0.0001081,2]
[333711968,1722395441175,-387.78273926,0.00010818,2]
[333711969,1722395441184,-1648.626,0.00010822,2]
[333711971,1722395441193,-274.183,0.00010822,2]
[333711973,1722395441203,-1161.864,0.00010822,2]
[333711975,1722395441214,-702.528,0.00010822,2]
[333711977,1722395441225,-151.0,0.0001084,2]
[333711979,1722395441234,-242.517455,0.0001084,2]
[333711981,1722395441243,-242.517455,0.0001084,2]
[333711983,1722395441252,-2039.784458,0.0001084,2]
[333711985,1722395441263,-2039.784458,0.0001084,2]
[333711986,1722395441272,-1534.430711,0.0001084,2]
[333711988,1722395441282,-1534.430711,0.0001084,2]
[333711990,1722395441295,-189.655539,0.0001084,2]
[333711992,1722395441304,-189.655539,0.0001084,2]
[333711994,1722395441314,-151.0,0.0001084,2]
[333711996,1722395441323,-151.0,0.0001084,2]
[333711998,1722395441333,-409.606418,0.0001084,2]
[333712000,1722395441342,-409.606418,0.0001084,2]
[333712002,1722395441351,-151.0,0.0001084,2]
[333712004,1722395441360,-244.9219133,0.0001084,2]
[333712005,1722395441370,-168.10634716,0.00010859,2]
[333712007,1722395441379,-435.73506626,0.00010878,2]
[333712009,1722395441389,-168.10634716,0.0001088,2]
[333712011,1722395441398,-34863.21834863,0.0001088,2]
[333712013,1722395441407,-157.0,0.0001088,2]
[333712015,1722395441418,-151.0,0.0001088,2]
[333712017,1722395441427,-151.0,0.0001088,2]
[333712019,1722395441437,-278.6,0.0001088,2]
[333712021,1722395441447,-151.0,0.0001088,2]
[333712023,1722395441457,-2354.856698,0.0001088,2]
[333712024,1722395441466,-2354.856698,0.0001088,2]
[333712025,1722395441476,-151.0,0.0001088,2]
[333712026,1722395441486,-151.0,0.0001088,2]
[333712027,1722395441495,-274.70567,0.0001088,2]
[333712028,1722395441505,-151.0,0.0001088,2]
[333712029,1722395441516,-151.0,0.0001088,2]
[333712030,1722395441526,-1912.209478,0.0001088,2]
[333712031,1722395441536,-1912.209478,0.0001088,2]
[333712032,1722395441545,-151.0,0.0001088,2]
[333712033,1722395441555,-412.541709,0.0001088,2]
[333712034,1722395441565,-412.541709,0.0001088,2]
[333712035,1722395441574,-2941.795665,0.00010881,2]
[333712036,1722395441584,-9811.425934,0.00010881,2]
[333712037,1722395441593,-543.570799,0.00010881,2]
[333712038,1722395441603,-23776.939251,0.00010881,2]
[333712039,1722395441614,-16190.947954,0.00010881,2]
[333712040,1722395441623,-820.245796,0.00010881,2]
[333712041,1722395441633,-271.676338,0.00010881,2]
[333712042,1722395441643,-11221.854821,0.00010881,2]
[333712043,1722395441652,-12089.359349,0.00010881,2]
[333712044,1722395441661,-409.958914,0.00010881,2]
[333712045,1722395441671,-151.0,0.00010881,2]
[333712046,1722395441681,-151.0,0.00010881,2]
[333712048,1722395441691,-151.0,0.00010881,2]
[333712049,1722395441700,-151.0,0.00010881,2]
[333712052,1722395441711,-238.675,0.00010881,2]
[333712053,1722395441720,-151.026486,0.00010881,2]
[333712055,1722395441730,-151.026486,0.00010881,2]
[333712057,1722395441739,-210.021836,0.00010881,2]
[333712059,1722395441749,-151.0,0.00010881,2]
[333712061,1722395441759,-274.862096,0.00010881,2]
[333712063,1722395441771,-217.35639,0.00010881,2]
[333712065,1722395441780,-217.35639,0.00010881,2]
[333712067,1722395441791,-151.0,0.00010881,2]
[333712069,1722395441806,-151.0,0.00010881,2]
[333712071,1722395441816,-295.47,0.00010881,2]
[333712073,1722395441826,-295.47,0.00010881,2]
[333712075,1722395441836,-151.0,0.00010881,2]
[333712077,1722395441846,-151.0,0.00010881,2]
[333712079,1722395441856,-151.0,0.00010881,2]
[333712081,1722395441865,-151.0,0.00010881,2]
[333712083,1722395441876,-151.0,0.00010881,2]
[333712085,1722395441887,-151.0,0.00010881,2]
[333712087,1722395441896,-268.073743,0.00010881,2]
[333712090,1722395441906,-268.073743,0.00010881,2]
[333712092,1722395441915,-197.032884,0.00010881,2]
[333712093,1722395441925,-197.032884,0.00010881,2]
[333712095,1722395441934,-174.157114,0.00010881,2]
[333712097,1722395441943,-151.0,0.00010881,2]
[333712099,1722395441953,-446.329501,0.00010881,2]
[333712101,1722395441962,-446.329501,0.00010881,2]
[333712103,1722395441972,-242.517455,0.00010881,2]
[333712105,1722395441982,-151.0,0.00010881,2]
[333712107,1722395441992,-151.0,0.00010881,2]
[333712109,1722395442001,-242.517455,0.00010881,2]
[333712111,1722395442013,-151.0,0.00010881,2]
[333712113,1722395442023,-2039.784458,0.00010881,2]
[333712115,1722395442033,-151.0,0.00010881,2]
[333712117,1722395442042,-2039.784458,0.00010881,2]
[333712119,1722395442052,-1534.430711,0.00010881,2]
[333712121,1722395442062,-1534.430711,0.00010881,2]
[333712123,1722395442071,-189.655539,0.00010881,2]
[333712125,1722395442081,-189.655539,0.00010881,2]
[333712127,1722395442091,-151.0,0.00010881,2]
[333712129,1722395442100,-151.0,0.00010881,2]
[333712131,1722395442109,-409.606418,0.00010881,2]
[333712133,1722395442118,-409.606418,0.00010881,2]
[333712135,1722395442127,-151.446067,0.00010881,2]
[333712137,1722395442137,-151.0,0.00010881,2]
[333712139,1722395442146,-151.0,0.00010881,2]
[333712141,1722395442156,-151.0,0.00010881,2]
[333712143,1722395442166,-1912.209478,0.00010881,2]
[333712145,1722395442176,-1912.209478,0.00010881,2]
[333712146,1722395442186,-151.0,0.00010881,2]
[333712147,1722395442196,-151.0,0.00010881,2]
[333712148,1722395442205,-151.0,0.00010881,2]
[333712149,1722395442215,-285.615198,0.00010881,2]
[333712150,1722395442224,-285.615198,0.00010881,2]
[333712151,1722395442234,-412.541709,0.00010881,2]
[333712152,1722395442243,-412.541709,0.00010881,2]
[333712153,1722395442253,-151.0,0.00010881,2]
[333712154,1722395442265,-208.736383,0.00010881,2]
[333712155,1722395442275,-151.0,0.00010881,2]
[333712156,1722395442285,-208.736383,0.00010881,2]
[333712157,1722395442294,-151.0,0.00010881,2]
[333712158,1722395442303,-151.0,0.00010881,2]
[333712159,1722395442312,-361.652872,0.00010881,2]
[333712160,1722395442322,-151.0,0.00010881,2]
[333712161,1722395442332,-361.652872,0.00010881,2]
[333712162,1722395442341,-151.0,0.00010881,2]
[333712163,1722395442352,-470.306973,0.00010881,2]
[333712164,1722395442361,-470.306973,0.00010881,2]
[333712166,1722395442371,-151.0,0.00010881,2]
[333712168,1722395442380,-151.0,0.00010881,2]
[333712170,1722395442389,-151.0,0.00010881,2]
[333712172,1722395442398,-151.0,0.00010881,2]
[333712174,1722395442407,-151.0,0.00010881,2]
[333712176,1722395442416,-151.0,0.00010881,2]
[333712178,1722395442426,-151.0,0.00010881,2]
[333712180,1722395442435,-151.0,0.00010881,2]
[333712181,1722395442445,-173.355308,0.00010881,2]
[333712183,1722395442454,-173.355308,0.00010881,2]
[333712185,1722395442463,-153.216215,0.00010881,2]
[333712186,1722395442472,-153.216215,0.00010881,2]
[333712187,1722395442482,-352.273496,0.00010881,2]
[333712188,1722395442491,-151.0,0.00010881,2]
[333712189,1722395442500,-352.273496,0.00010881,2]
[333712190,1722395442510,-151.0,0.00010881,2]
[333712191,1722395442519,-1141.126466,0.00010881,2]
[333712192,1722395442529,-1141.126466,0.00010881,2]
[333712193,1722395442539,-160.315503,0.00010881,2]
[333712194,1722395442548,-160.315503,0.00010881,2]
[333712195,1722395442557,-210.655224,0.00010881,2]
[333712196,1722395442567,-210.655224,0.00010881,2]
[333712197,1722395442577,-1088.755526,0.00010881,2]
[333712198,1722395442586,-240.309252,0.00010881,2]
[333712199,1722395442595,-1088.755526,0.00010881,2]
[333712200,1722395442604,-240.309252,0.00010881,2]
[333712201,1722395442613,-369.716181,0.00010881,2]
[333712202,1722395442623,-369.716181,0.00010881,2]
[333712203,1722395442633,-10000.0,0.00010881,2]
[333712204,1722395442642,-151.0,0.00010881,2]
[333712205,1722395442651,-151.0,0.00010881,2]
[333712206,1722395442660,-151.0,0.00010881,2]
[333712207,1722395442670,-151.0,0.00010881,2]
[333712208,1722395442679,-371.1454,0.00010881,2]
[333712209,1722395442688,-160.850779,0.00010881,2]
[333712210,1722395442697,-371.1454,0.00010881,2]
[333712211,1722395442707,-160.850779,0.00010881,2]
[333712212,1722395442716,-2589.862576,0.00010881,2]
[333712213,1722395442726,-151.0,0.00010881,2]
[333712214,1722395442735,-151.0,0.00010881,2]
[333712215,1722395442744,-183.306266,0.00010881,2]
[333712216,1722395442753,-151.0,0.00010881,2]
[333712217,1722395442762,-151.0,0.00010881,2]
[333712218,1722395442771,-151.0,0.00010881,2]
[333712219,1722395442781,-151.0,0.00010881,2]
[333712220,1722395442790,-151.0,0.00010881,2]
[333712221,1722395442800,-442.303996,0.00010881,2]
[333712222,1722395442812,-442.303996,0.00010881,2]
[333712223,1722395442822,-393.462025,0.00010881,2]
[333712224,1722395442831,-393.462025,0.00010881,2]
[333712225,1722395442840,-162.187659,0.00010881,2]
[333712226,1722395442850,-197.738944,0.00010881,2]
[333712227,1722395442860,-162.187659,0.00010881,2]
[333712228,1722395442869,-197.738944,0.00010881,2]
[333712229,1722395442878,-151.0,0.00010881,2]
[333712230,1722395442888,-151.0,0.00010881,2]
[333712231,1722395442898,-184.828833,0.00010881,2]
[333712232,1722395442908,-184.828833,0.00010881,2]
[333712233,1722395442918,-151.0,0.00010881,2]
[333712234,1722395442927,-3128.242242,0.00010881,2]
[333712235,1722395442936,-270.57427,0.00010881,2]
[333712236,1722395442946,-287.931746,0.00010881,2]
[333712237,1722395442955,-3128.242242,0.00010881,2]
[333712238,1722395442964,-287.931746,0.00010881,2]
[333712239,1722395442974,-184.895004,0.00010881,2]
[333712240,1722395442983,-184.895004,0.00010881,2]
[333712241,1722395442993,-187.180114,0.00010881,2]
[333712242,1722395443002,-183.71877775,0.00010885,2]
[333712243,1722395443012,-151.0,0.00010885,2]
[333712244,1722395443022,-151.0,0.00010885,2]
[333712245,1722395443031,-285.615198,0.00010885,2]
[333712246,1722395443040,-285.615198,0.00010885,2]
[333712247,1722395443049,-208.736383,0.00010885,2]
[333712248,1722395443059,-208.736383,0.00010885,2]
[333712249,1722395443068,-151.0,0.00010885,2]
[333712250,1722395443078,-361.652872,0.00010885,2]
[333712251,1722395443087,-361.652872,0.00010885,2]
[333712252,1722395443096,-151.0,0.00010885,2]
[333712253,1722395443106,-151.0,0.00010885,2]
[333712254,1722395443115,-151.0,0.000109,2]
[333712255,1722395443125,-168.10634716,0.000109,2]
[333712256,1722395443134,-151.0,0.000109,2]
[333712257,1722395443144,-151.0,0.000109,2]
[333712258,1722395443154,-151.0,0.000109,2]
[333712259,1722395443163,-183.71877774,0.000109,2]
[333712260,1722395443172,-268.073743,0.000109,2]
[333712261,1722395443181,-268.073743,0.000109,2]
[333712262,1722395443191,-197.032884,0.000109,2]
[333712263,1722395443200,-197.032884,0.000109,2]
[333712264,1722395443209,-174.157114,0.000109,2]
[333712265,1722395443219,-446.329501,0.000109,2]
[333712266,1722395443228,-446.329501,0.000109,2]
[333712267,1722395443237,-151.0,0.000109,2]
[333712268,1722395443247,-151.0,0.000109,2]
[333712269,1722395443257,-151.0,0.000109,2]
[333712270,1722395443268,-2354.856698,0.000109,2]
[333712271,1722395443278,-2354.856698,0.000109,2]
[333712272,1722395443288,-151.0,0.000109,2]
[333712273,1722395443298,-595.28532221,0.000109,2]
[333712274,1722395443308,-39579.18872607,0.000109,2]
[333712275,1722395443318,-6521.53555961,0.000109,2]
[333712279,1722395443500,-500.0,0.00010911,2]
[333712280,1722395443509,-500.0,0.00010912,2]
[333712281,1722395443519,-500.0,0.00010912,2]
[333712282,1722395443529,-151.0,0.00010945,2]
[333712283,1722395443538,-151.0,0.00010945,2]
[333712284,1722395443547,-151.0,0.00010945,2]
[333712285,1722395443556,-151.0,0.00010945,2]
[333712286,1722395443565,-151.0,0.00010945,2]
[333712287,1722395443575,-470.306973,0.00010945,2]
[333712289,1722395443584,-470.306973,0.00010945,2]
[333712290,1722395443593,-151.0,0.00010945,2]
[333712291,1722395443602,-151.0,0.00010945,2]
[333712292,1722395443612,-151.0,0.00010945,2]
[333712293,1722395443621,-173.355308,0.00010945,2]
[333712294,1722395443630,-173.355308,0.00010945,2]
[333712295,1722395443639,-1000.0,0.00010945,2]
[333712296,1722395443648,-1000.0,0.00010945,2]
[333712298,1722395443657,-1000.0,0.00010945,2]
[333712300,1722395443667,-523.7456,0.00010945,2]
[333712301,1722395443676,-151.0,0.00010959,2]
[333712303,1722395443685,-151.0,0.00010984,2]
[333712305,1722395443694,-151.0,0.00010984,2]
[333712306,1722395443704,-151.0,0.00010984,2]
[333712307,1722395443713,-153.216215,0.00010984,2]
[333712308,1722395443722,-153.216215,0.00010984,2]
[333712309,1722395443731,-352.273496,0.00010984,2]
[333712310,1722395443740,-151.0,0.00010984,2]
[333712311,1722395443749,-352.273496,0.00010984,2]
[333712312,1722395443758,-151.0,0.00010984,2]
[333712313,1722395443768,-1141.126466,0.00010984,2]
[333712314,1722395443776,-1141.126466,0.00010984,2]
[333712315,1722395443786,-160.315503,0.00010984,2]
[333712316,1722395443796,-160.315503,0.00010984,2]
[333712317,1722395443809,-210.655224,0.00010984,2]
[333712318,1722395443818,-210.655224,0.00010984,2]
[333712319,1722395443827,-1088.755526,0.00010984,2]
[333712320,1722395443836,-240.309252,0.00010984,2]
[333712321,1722395443846,-1088.755526,0.00010984,2]
[333712322,1722395443855,-240.309252,0.00010984,2]
[333712323,1722395443865,-369.716181,0.00010984,2]
[333712324,1722395443874,-369.716181,0.00010984,2]
[333712325,1722395443884,-82535.07687165,0.00010985,3]
[333712326,1722395443894,-1764.88102705,0.00010985,3]
[333712327,1722395443903,-151.0,0.00010985,2]
[333712328,1722395443912,-151.0,0.00010985,2]
[333712329,1722395443922,-151.0,0.00010985,2]
[333712330,1722395443932,-238.675,0.00010985,2]
[333712331,1722395443942,-151.026486,0.00010985,2]
[333712332,1722395443952,-151.026486,0.00010985,2]
[333712333,1722395443962,-210.021836,0.00010985,2]
[333712334,1722395443972,-217.35639,0.00010985,2]
[333712335,1722395443982,-217.35639,0.00010985,2]
[333712336,1722395443993,-151.0,0.00010985,2]
[333712337,1722395444002,-151.0,0.00010985,2]
[333712338,1722395444011,-295.47,0.00010985,2]
[333712339,1722395444021,-295.47,0.00010985,2]
[333712340,1722395444030,-151.0,0.00010985,2]
[333712341,1722395444040,-151.0,0.00010985,2]
[333712342,1722395444049,-151.0,0.00010985,2]
[333712343,1722395444058,-151.0,0.00010985,2]
[333712344,1722395444068,-151.0,0.00010985,2]
[333712345,1722395444078,-151.0,0.00010985,2]
[333712346,1722395444087,-151.0,0.00010985,2]
[333712347,1722395444096,-242.517455,0.00010985,2]
[333712348,1722395444105,-242.517455,0.00010985,2]
[333712349,1722395444114,-2039.784458,0.00010985,2]
[333712350,1722395444123,-2039.784458,0.00010985,2]
[333712351,1722395444133,-1534.430711,0.00010985,2]
[333712352,1722395444142,-1534.430711,0.00010985,2]
[333712353,1722395444151,-189.655539,0.00010985,2]
[333712354,1722395444161,-189.655539,0.00010985,2]
[333712355,1722395444170,-2354.856698,0.00010985,2]
[333712356,1722395444179,-2354.856698,0.00010985,2]
[333712357,1722395444189,-151.0,0.00010985,2]
[333712358,1722395444199,-151.0,0.00010985,2]
[333712359,1722395444208,-409.606418,0.00010985,2]
[333712360,1722395444217,-409.606418,0.00010985,2]
[333712361,1722395444226,-151.0,0.00010985,2]
[333712362,1722395444236,-151.0,0.00010985,2]
[333712363,1722395444246,-151.0,0.00010985,2]
[333712364,1722395444255,-1912.209478,0.00010985,2]
[333712365,1722395444266,-1912.209478,0.00010985,2]
[333712366,1722395444275,-151.0,0.00010985,2]
[333712367,1722395444285,-151.0,0.00010985,2]
[333712368,1722395444294,-151.0,0.00010985,2]
[333712369,1722395444304,-285.615198,0.00010985,2]
[333712370,1722395444313,-285.615198,0.00010985,2]
[333712371,1722395444323,-412.541709,0.00010985,2]
[333712372,1722395444333,-412.541709,0.00010985,2]
[333712373,1722395444343,-208.736383,0.00010985,2]
[333712374,1722395444352,-208.736383,0.00010985,2]
[333712375,1722395444361,-151.0,0.00010985,2]
[333712376,1722395444371,-361.652872,0.00010985,2]
[333712377,1722395444381,-361.652872,0.00010985,2]
[333712378,1722395444390,-151.0,0.00010985,2]
[333712379,1722395444399,-151.0,0.00010985,2]
[333712380,1722395444409,-151.0,0.00010985,2]
[333712381,1722395444418,-151.0,0.00010985,2]
[333712382,1722395444428,-194.165987,0.00010985,2]
[333712383,1722395444437,-153.216215,0.00010985,2]
[333712384,1722395444447,-153.216215,0.00010985,2]
[333712385,1722395444457,-352.273496,0.00010985,2]
[333712386,1722395444466,-352.273496,0.00010985,2]
[333712387,1722395444476,-151.0,0.00010985,2]
[333712388,1722395444486,-1141.126466,0.00010985,2]
[333712389,1722395444496,-1141.126466,0.00010985,2]
[333712390,1722395444505,-160.315503,0.00010985,2]
[333712391,1722395444516,-160.315503,0.00010985,2]
[333712392,1722395444525,-210.655224,0.00010985,2]
[333712393,1722395444538,-210.655224,0.00010985,2]
[333712394,1722395444548,-1088.755526,0.00010985,2]
[333712395,1722395444557,-240.309252,0.00010985,2]
[333712396,1722395444567,-1088.755526,0.00010985,2]
[333712397,1722395444578,-240.309252,0.00010985,2]
[333712398,1722395444588,-369.716181,0.00010985,2]
[333712399,1722395444597,-369.716181,0.00010985,2]
[333712400,1722395444607,-10000.0,0.00010985,2]
[333712401,1722395444616,-151.0,0.00010985,2]
[333712402,1722395444625,-151.0,0.00010985,2]
[333712403,1722395444635,-151.0,0.00010985,2]
[333712404,1722395444644,-151.0,0.00010985,2]
[333712405,1722395444654,-371.1454,0.00010985,2]
[333712406,1722395444664,-160.850779,0.00010985,2]
[333712407,1722395444674,-371.1454,0.00010985,2]
[333712408,1722395444684,-160.850779,0.00010985,2]
[333712409,1722395444694,-2589.862576,0.00010985,2]
[333712410,1722395444703,-151.0,0.00010985,2]
[333712411,1722395444713,-151.0,0.00010985,2]
[333712412,1722395444723,-151.0,0.00010985,2]
[333712413,1722395444732,-151.0,0.00010985,2]
[333712414,1722395444742,-308.85697469,0.00010985,2]
[333712415,1722395444752,-151.0,0.00010985,2]
[333712416,1722395444762,-151.0,0.00010985,2]
[333712417,1722395444771,-151.0,0.00010985,2]
[333712418,1722395444781,-442.303996,0.00010985,2]
[333712419,1722395444790,-442.303996,0.00010985,2]
[333712420,1722395444801,-393.462025,0.00010985,2]
[333712421,1722395444812,-393.462025,0.00010985,2]
[333712422,1722395444821,-162.187659,0.00010985,2]
[333712423,1722395444831,-197.738944,0.00010985,2]
[333712424,1722395444840,-162.187659,0.00010985,2]
[333712425,1722395444851,-197.738944,0.00010985,2]
[333712426,1722395444861,-151.0,0.00010985,2]
[333712427,1722395444870,-151.0,0.00010985,2]
[333712428,1722395444880,-184.828833,0.00010985,2]
[333712429,1722395444891,-184.828833,0.00010985,2]
[333712430,1722395444901,-236.452232,0.00010985,2]
[333712431,1722395444911,-3128.242242,0.00010985,2]
[333712432,1722395444921,-287.931746,0.00010985,2]
[333712433,1722395444930,-3128.242242,0.00010985,2]
[333712434,1722395444940,-287.931746,0.00010985,2]
[333712435,1722395444951,-184.895004,0.00010985,2]
[333712436,1722395444960,-184.895004,0.00010985,2]
[333712437,1722395444969,-187.180114,0.00010985,2]
[333712438,1722395444979,-151.0,0.00010986,2]
[333712439,1722395444988,-151.0,0.00010986,2]
[333712440,1722395444998,-151.0,0.00010986,2]
[333712441,1722395445007,-151.0,0.00010986,2]
[333712442,1722395445018,-151.0,0.00010986,2]
[333712443,1722395445028,-151.0,0.00010986,2]
[333712444,1722395445037,-151.0,0.00010986,2]
[333712445,1722395445047,-238.675,0.00010986,2]
[333712446,1722395445056,-238.675,0.00010986,2]
[333712447,1722395445065,-151.026486,0.00010986,2]
[333712448,1722395445075,-151.026486,0.00010986,2]
[333712449,1722395445084,-151.026486,0.00010986,2]
[333712450,1722395445094,-151.026486,0.00010986,2]
[333712451,1722395445103,-210.021836,0.00010986,2]
[333712452,1722395445113,-210.021836,0.00010986,2]
[333712453,1722395445123,-151.0,0.00010986,2]
[333712454,1722395445132,-151.0,0.00010986,2]
[333712455,1722395445142,-151.0,0.00010986,2]
[333712456,1722395445152,-151.0,0.00010986,2]
[333712457,1722395445162,-217.35639,0.00010986,2]
[333712458,1722395445171,-217.35639,0.00010986,2]
[333712459,1722395445181,-217.35639,0.00010986,2]
[333712460,1722395445191,-217.35639,0.00010986,2]
[333712461,1722395445200,-151.0,0.00010986,2]
[333712462,1722395445209,-151.0,0.00010986,2]
[333712463,1722395445219,-290.166364,0.00010986,2]
[333712464,1722395445228,-151.0,0.00010986,2]
[333712465,1722395445237,-151.0,0.00010986,2]
[333712466,1722395445246,-295.47,0.00010986,2]
[333712467,1722395445256,-295.47,0.00010986,2]
[333712468,1722395445266,-295.47,0.00010986,2]
[333712469,1722395445276,-295.47,0.00010986,2]
[333712470,1722395445285,-151.0,0.00010986,2]
[333712471,1722395445295,-151.0,0.00010986,2]
[333712472,1722395445304,-151.0,0.00010986,2]
[333712473,1722395445314,-151.0,0.00010986,2]
[333712474,1722395445323,-151.0,0.00010986,2]
[333712475,1722395445332,-151.0,0.00010986,2]
[333712476,1722395445342,-151.0,0.00010986,2]
[333712477,1722395445351,-151.0,0.00010986,2]
[333712478,1722395445360,-151.0,0.00010986,2]
[333712479,1722395445370,-151.0,0.00010986,2]
[333712480,1722395445379,-165.452832,0.00010986,2]
[333712481,1722395445389,-151.0,0.00010986,2]
[333712482,1722395445398,-151.0,0.00010986,2]
[333712483,1722395445407,-151.0,0.00010986,2]
[333712484,1722395445416,-268.073743,0.00010986,2]